[Event "Istanbul Open 2018"]
[Site "Istanbul"]
[Date "2018.09.06"]
[Round "7"]
[White "Ocakacan, Deniz"]
[Black "Kavacik, Ahmet"]
[Result "*"]
[ECO "B97"]
[WhiteElo "1650"]
[BlackElo "1800"]
[Annotator "NA RC"]
[PlyCount "180"]
[EventDate "2018.09.02"]
[EventType "swiss"]
[EventCountry "TUR"]
[SourceTitle "playchess.com"]
[Source "ChessBase"]
[SourceQuality "1"]
[TimeControl "5400+30"]

{[%evp 20,180,32,23,32767,32767,32767,32767,32767,32767,32767,32767,32767,32767,32767,32767,32767,32767,32767,32767,32767,32767,32767,32767,190,32767,32767,0,-25,32767,-52,32767,-72,32767,32767,32767,32767,32767,32767,32767,32767,-14,0,-27,0,32767,32767,32767,32767,32767,-88,-105,32767,32767,32767,32767,32767,32767,32767,32767,32767,32767,0,32767,32767,32767,32767,-64,-80,-301,-306,-306,-291,-424,-304,-307,-152,-155,-54,-233,-124,-140,-190,-145,-215,-211,-221,-348,0,0,32767,32767,32767,32767,32767,32767,32767,32767,0,0,0,0,32767,32767,32767,32767,32767,32767,32767,32767,0,0,0,-427,-576,-993,-605,-1658,-721,-580,0,0,0,-8,840,8179,1377,12836,12689,5583,12844,29951,11840,175,32767,32767,32767,32767,137,0,92,0,131,0,98,131,131,93,131,93,175,0,98,0,93,0,32767,32767,32767,32767,0,0,0]} 1. e4 {[%emt 0:00:30]} c5 {[%emt 0:02:30]} 2. Nf3 {[%emt 0:00:00]} d6 {[%emt 0:00:30]} 3. d4 {[%emt 0:00:00]} Nf6 {[%emt 0:00:30]} 4. Nc3 {[%emt 0:01:30]} cxd4 {[%emt 0:00:00]} 5. Nxd4 {[%emt 0:00:30]} a6 {[%emt 0:00:00]} 6. Bg5 {[%emt 0:00:30]} e6 {[%emt 0:00:30]} 7. f4 {[%emt 0:00:00]} Qb6 {[%emt 0:00:30]} 8. a3 {[%emt 0:00:00]} Nc6 {[%emt 0:02:30]} 9. Nb3 {[%emt 0:00:30]} Be7 {[%emt 0:02:30] B97: Sicilian Najdorf: Poisoned Pawn} 10. Qf3 {[%emt 0:01:30]} (10. Qd2 O-O 11. O-O-O Rd8 12. Bd3 h6 13. h4 Bd7 14. Qe2 Kf8 15. e5 dxe5 16. fxe5 hxg5 17. exf6 Bxf6 18. hxg5 Bxg5+ {1-0 (35) Nakamura,H (2786)-Nepomniachtchi,I (2751) Moscow 2017 CBM 179 [Yermolinsky,A]}) 10... h6 {[%emt 0:07:30]} 11. Bh4 {[%emt 0:01:30] LiveBook: 7 Games} Qc7 {[%emt 0:00:30]} 12. O-O-O {[%emt 0:00:30]} b5 $146 {[%emt 0:01:30]} ({Predecessor:} 12... g5 13. e5 gxh4 14. exf6 Bxf6 15. Ne4 Be7 16. Qc3 Rg8 17. Nf6+ Bxf6 18. Qxf6 {½-½ (64) Yu,Y (2652)-Zhao,J (2580) Xinghua Jiangsu 2011}) 13. e5 {[%emt 0:03:30]} dxe5 {[%emt 0:04:30]} 14. fxe5 {[%emt 0:00:30]} Ng8 {[%emt 0:03:30]} 15. Bxe7 {[%emt 0:11:30]} Ngxe7 {[%emt 0:04:30]} 16. Bxb5 {[%emt 0:00:00]} Rb8 {[%emt 0:11:30]} 17. Bxc6+ {[%emt 0:11:00]} Nxc6 {[%emt 0:02:30]} 18. Rhe1 {[%emt 0:09:30]} O-O {[%emt 0:10:30]} 19. Qg3 {[%emt 0:01:30]} a5 {[%emt 0:01:30]} 20. Re4 {[%emt 0:00:30]} Ba6 {[%emt 0:02:30]} 21. Nc5 {[%emt 0:03:30]} Bc8 {[%emt 0:08:30]} 22. Nd3 {[%emt 0:04:30]} Ne7 {[%emt 0:04:30]} 23. Rf1 {[%emt 0:13:30]} (23. Qf2 $16) 23... Ba6 {[%emt 0:03:30]} 24. Rf2 {[%emt 0:10:30]} Nf5 {[%emt 0:05:59]} 25. Qh3 {[%emt 0:03:30]} Qb7 {[%emt 0:13:15]} 26. g4 {[%emt 0:06:08]} Bxd3 {[%emt 0:01:05]} 27. cxd3 {[%emt 0:01:21]} Qb6 {[%emt 0:01:57]} 28. Rg2 {[%emt 0:02:38]} Ne7 {[%emt 0:01:40]} 29. Qe3 {[%emt 0:00:34]} Qb7 {[%emt 0:01:18]} 30. Rc2 {[%emt 0:05:30]} Rfc8 {[%emt 0:00:25]} 31. Qe1 {[%emt 0:01:58]} Qb3 {[%emt 0:00:30]} 32. Kd2 {[%emt 0:00:37]} Nd5 {[%emt 0:00:34]} 33. Qc1 {[%emt 0:00:46]} Rd8 {[%emt 0:01:04]} 34. Na4 {[%emt 0:01:34] [#]} Nb4 $2 {[%emt 0:01:41]} (34... Nf6 $1 $19 {is more deadly.} 35. Rec4 Qxd3+ 36. Ke1 Ne4) 35. Nc5 {[%emt 0:03:56]} Qxc2+ {[%emt 0:00:38]} 36. Qxc2 {[%emt 0:00:05]} Nxc2 {[%emt 0:00:06]} 37. Kxc2 {[%emt 0:00:04]} Rbc8 {[%emt 0:00:25]} 38. d4 {[%emt 0:00:08]} Kf8 {[%emt 0:01:15]} 39. Kc3 {[%emt 0:00:05]} Ke7 {[%emt 0:00:14]} 40. Kc4 {[%emt 0:00:27]} Rd5 {[%emt 0:00:17]} ({Lieber} 40... Ra8 $17) 41. b4 {[%emt 0:01:01]} axb4 {[%emt 0:00:16]} 42. axb4 {[%emt 0:00:05]} Ra8 {[%emt 0:00:21]} 43. Re2 {[%emt 0:00:18]} (43. b5 $11) 43... Ra1 {[%emt 0:00:16]} 44. Rb2 $2 {[%emt 0:00:23]} (44. Nb3 $15 Rg1 45. h3) 44... Rc1+ {[%emt 0:00:23]} 45. Kb5 {[%emt 0:02:19]} Rxd4 {[%emt 0:00:10]} 46. Kb6 {[%emt 0:00:32]} Rd5 {[%emt 0:00:52]} 47. Ra2 {[%emt 0:00:31]} Rd8 {[%emt 0:01:47]} (47... g5 $19 48. Ra7+ Kf8) 48. Ra7+ {[%emt 0:00:09]} Ke8 {[%emt 0:00:02]} (48... Kf8 $19 49. Rc7 Rh1) 49. Rb7 $2 {[%emt 0:02:09]} (49. Rc7 $1 $11) 49... Rc8 {[%emt 0:00:28]} (49... Re1 $19 50. b5 Rxe5) 50. Ne4 {[%emt 0:00:36]} R8c6+ {[%emt 0:00:12]} 51. Kb5 {[%emt 0:00:11]} Rc7 {[%emt 0:00:23]} 52. Rb8+ {[%emt 0:00:32] [#]} (52. Rxc7 $17 Rxc7 53. Nc5) 52... Ke7 $1 {[%emt 0:00:02]} 53. Nd6 {[%emt 0:00:23] [#]} (53. h4 $142) 53... Re1 $2 {[%emt 0:01:24]} (53... f6 $1 $19 54. Re8+ Kd7) 54. Nc8+ {[%emt 0:00:45]} Kd7 {[%emt 0:00:55]} 55. Nb6+ {[%emt 0:00:09]} Ke7 {[%emt 0:00:02]} 56. Nc8+ {[%emt 0:00:18]} Rxc8 {[%emt 0:00:58]} 57. Rxc8 {[%emt 0:00:04]} Rxe5+ {[%emt 0:00:04]} 58. Kc6 {[%emt 0:00:13]} Re4 {[%emt 0:00:30]} 59. b5 {[%emt 0:00:51]} Rc4+ $1 {[%emt 0:00:32]} 60. Kb7 {[%emt 0:00:07]} Rxg4 {[%emt 0:00:20]} 61. Rc7+ {[%emt 0:00:24]} Kf6 {[%emt 0:00:11]} 62. Rc2 {[%emt 0:00:10]} Rb4 {[%emt 0:00:07]} 63. b6 {[%emt 0:00:20]} e5 {[%emt 0:00:10]} 64. Kc6 {[%emt 0:00:07]} e4 {[%emt 0:01:04]} 65. b7 {[%emt 0:00:25]} Ke6 {[%emt 0:00:53]} 66. Rc5 $2 {[%emt 0:00:56] [#]} (66. Rd2 $11 Rxb7 67. Kxb7) 66... Rxb7 $3 {[%emt 0:00:59]} 67. Kxb7 {[%emt 0:00:10]} f5 {[%emt 0:00:06]} 68. Kb6 {[%emt 0:00:25]} f4 {[%emt 0:00:33]} 69. Kb5 {[%emt 0:00:05] [#]} f3 $2 {[%emt 0:00:42]} (69... e3 $1 $19 70. Rc8 f3 71. Re8+ Kf5 72. Rxe3 Kf4) 70. Rc1 $1 {[%emt 0:01:21]} Ke5 {[%emt 0:00:33]} (70... Kd5 $5 71. Rd1+ $8 Ke5 $11) 71. Kc4 {[%emt 0:00:10]} g5 $2 {[%emt 0:00:22] [#]} (71... Kf4 $11 72. Kd4 f2) 72. Kc3 $1 {[%emt 0:00:25]} Kf4 {[%emt 0:00:41]} 73. Kd2 {[%emt 0:00:08]} e3+ {[%emt 0:00:41]} 74. Ke1 {[%emt 0:00:09]} g4 {[%emt 0:00:26]} 75. Rc8 {[%emt 0:01:06]} h5 $2 {[%emt 0:00:24]} (75... e2 $16 76. Kf2 Kg5 77. Rc5+ Kf6 78. Rc6+ Kg5) 76. Rg8 $2 {[%emt 0:00:52]} (76. Rc4+ Kg5 77. Rc5+ Kf4 78. Rxh5) 76... Kf5 $1 {[%emt 0:00:36]} 77. Rf8+ {[%emt 0:00:17]} Kg5 $1 {[%emt 0:00:08]} 78. Re8 {[%emt 0:00:07]} (78. Kf1 $16) 78... Kf4 {[%emt 0:00:55] [#]} 79. Rf8+ {[%emt 0:01:10]} ({White should try} 79. Rh8 $1 $16 {[%cal Rh8h5]} Kg5 {White should try} 80. Kf1 $16) 79... Kg5 {[%emt 0:00:16]} 80. Re8 {[%emt 0:00:15]} Kf4 {[%emt 0:00:45]} 81. Rg8 {[%emt 0:02:12]} Kf5 {[%emt 0:00:12]} 82. Kf1 {[%emt 0:00:30]} Kf4 {[%emt 0:00:39]} 83. Rf8+ {[%emt 0:00:27]} Kg5 $1 {[%emt 0:00:02]} 84. Re8 {[%emt 0:00:46]} Kf4 {[%emt 0:01:10]} 85. Rf8+ {[%emt 0:00:47]} (85. Rh8 $18) 85... Kg5 {[%emt 0:00:01]} 86. Re8 {[%emt 0:00:25]} Kf4 {[%emt 0:00:56]} 87. Rg8 $2 {[%emt 0:00:39]} h4 {[%emt 0:00:17]} 88. Rf8+ {[%emt 0:00:06]} Ke4 {[%emt 0:00:15]} 89. Re8+ {[%emt 0:00:28]} Kd3 {[%emt 0:00:24]} 90. Rd8+ $11 {[%emt 0:00:07]} Kc2 {[%emt 0:00:47]} *

[Event "Istanbul Open 2018"]
[Site "Istanbul"]
[Date "2018.09.06"]
[Round "7"]
[White "Kocer, Ahmet Doruk"]
[Black "Gulceken, Sumeyye"]
[Result "1/2-1/2"]
[ECO "C02"]
[WhiteElo "1635"]
[BlackElo "1549"]
[Annotator "NA RC"]
[PlyCount "119"]
[EventDate "2018.09.02"]
[EventType "swiss"]
[EventCountry "TUR"]
[SourceTitle "playchess.com"]
[Source "ChessBase"]
[SourceQuality "1"]
[TimeControl "5400+30"]

1. e4 {[%emt 0:00:30]} e6 {[%emt 0:00:30]} 2. d4 {[%emt 0:00:00]} d5 {[%emt 0:00:00]} 3. e5 {[%emt 0:00:00]} c5 {[%emt 0:00:00]} 4. c3 {[%emt 0:00:30]} Qb6 {[%emt 0:00:00]} 5. Nf3 {[%emt 0:00:00]} Nc6 {[%emt 0:00:00]} 6. a3 {[%emt 0:00:00]} Bd7 {[%emt 0:00:30]} 7. b4 {[%emt 0:00:00]} cxd4 {[%emt 0:00:30]} 8. cxd4 {[%emt 0:00:00]} Be7 {[%emt 0:00:30]} 9. Be2 {[%emt 0:00:30]} f6 {[%emt 0:04:30]} 10. O-O {[%emt 0:00:30]} Qc7 {[%emt 0:03:30]} 11. Bb2 {[%emt 0:02:30]} Nh6 {[%emt 0:03:30]} 12. h3 {[%emt 0:02:30]} fxe5 {[%emt 0:03:30]} 13. Nxe5 {[%emt 0:00:30]} Nxe5 {[%emt 0:00:30]} 14. dxe5 {[%emt 0:00:30]} O-O {[%emt 0:00:30]} 15. Nd2 {[%emt 0:00:30]} Nf5 {[%emt 0:04:30]} 16. Nf3 {[%emt 0:02:30]} Rac8 {[%emt 0:04:30]} 17. Rc1 {[%emt 0:03:30]} Qb6 {[%emt 0:04:30]} 18. Rxc8 {[%emt 0:02:30]} Rxc8 {[%emt 0:02:30]} 19. Nd4 {[%emt 0:03:30]} Rf8 {[%emt 0:04:30]} 20. Nxf5 {[%emt 0:10:30]} Rxf5 {[%emt 0:00:30]} 21. Bd4 {[%emt 0:00:00]} Qc7 {[%emt 0:01:30]} 22. Qb1 {[%emt 0:03:00]} g6 {[%emt 0:03:30]} 23. Rc1 {[%emt 0:01:30]} Qb8 {[%emt 0:02:30]} 24. Qc2 {[%emt 0:03:30]} Bd8 {[%emt 0:09:30]} 25. Bd3 {[%emt 0:05:30]} Rf7 {[%emt 0:00:30]} 26. g3 {[%emt 0:06:30]} a6 {[%emt 0:04:30]} 27. h4 {[%emt 0:06:30]} b5 {[%emt 0:04:30]} 28. Kg2 {[%emt 0:07:30]} Bb6 {[%emt 0:01:30]} 29. Bxb6 {[%emt 0:01:30]} Qxb6 {[%emt 0:00:30]} 30. Qc5 {[%emt 0:00:30]} Qxc5 {[%emt 0:01:30]} 31. Rxc5 {[%emt 0:00:30]} Rf8 {[%emt 0:02:30]} 32. Rc7 {[%emt 0:02:30]} Rf7 {[%emt 0:05:30]} 33. f4 {[%emt 0:03:30]} Be8 {[%emt 0:00:30]} 34. Rc8 {[%emt 0:01:30]} Kf8 {[%emt 0:03:30]} 35. Kf3 {[%emt 0:01:30]} Ra7 {[%emt 0:01:30]} 36. g4 {[%emt 0:04:30]} Ke7 {[%emt 0:01:30]} 37. Ke3 {[%emt 0:03:30]} a5 {[%emt 0:02:30]} 38. Rb8 {[%emt 0:02:30]} axb4 {[%emt 0:00:30]} 39. axb4 {[%emt 0:00:30]} Ra3 {[%emt 0:02:30]} 40. Rb7+ {[%emt 0:02:43]} Kd8 {[%emt 0:00:50]} 41. Rxh7 {[%emt 0:00:44]} Rb3 {[%emt 0:00:23]} 42. h5 {[%emt 0:02:08]} gxh5 {[%emt 0:00:29]} 43. gxh5 {[%emt 0:00:02]} Rxb4 {[%emt 0:00:18]} 44. h6 {[%emt 0:03:16]} d4+ {[%emt 0:00:34]} 45. Kd2 {[%emt 0:01:01]} Rb2+ {[%emt 0:00:26]} 46. Kc1 {[%emt 0:00:28]} Rb3 {[%emt 0:01:00]} 47. Be4 {[%emt 0:01:45]} Re3 {[%emt 0:01:24]} 48. Bg2 {[%emt 0:01:11]} Rc3+ {[%emt 0:01:19]} 49. Kd2 {[%emt 0:00:29]} Bg6 {[%emt 0:00:19]} 50. Rh8+ {[%emt 0:00:13]} Ke7 {[%emt 0:00:07]} 51. Ba8 {[%emt 0:00:40]} Rh3 {[%emt 0:00:47]} 52. Bc6 {[%emt 0:01:26]} b4 {[%emt 0:00:34]} 53. Rb8 {[%emt 0:01:02]} Rxh6 {[%emt 0:00:32]} 54. Rxb4 {[%emt 0:00:03]} Rh2+ {[%emt 0:00:54]} 55. Ke1 {[%emt 0:00:34]} d3 {[%emt 0:00:44]} 56. Bf3 {[%emt 0:00:53]} d2+ {[%emt 0:01:41]} 57. Kd1 {[%emt 0:00:20]} Rf2 {[%emt 0:01:41]} 58. Be2 {[%emt 0:00:36]} Bf5 {[%emt 0:02:20]} 59. Rd4 {[%emt 0:00:56]} Bg6 {[%emt 0:02:00]} 60. Rb4 {[%emt 0:00:18]} 1/2-1/2

[Event "Istanbul Open 2018"]
[Site "Istanbul"]
[Date "2018.09.06"]
[Round "7"]
[White "Tahaoglu, Erkin"]
[Black "Sar, Can"]
[Result "1-0"]
[ECO "B07"]
[WhiteElo "1613"]
[BlackElo "1800"]
[Annotator "NA RC"]
[PlyCount "97"]
[EventDate "2018.09.02"]
[EventType "swiss"]
[EventCountry "TUR"]
[SourceTitle "playchess.com"]
[Source "ChessBase"]
[SourceQuality "1"]
[TimeControl "5400+30"]

1. d4 {[%emt 0:00:30]} Nf6 {[%emt 0:01:30]} 2. Bf4 {[%emt 0:00:00]} g6 {[%emt 0:00:30]} 3. Nc3 {[%emt 0:00:00]} d6 {[%emt 0:00:30]} 4. e4 {[%emt 0:00:30]} Bg7 {[%emt 0:01:30]} 5. Qd2 {[%emt 0:00:30]} O-O {[%emt 0:00:30]} 6. O-O-O {[%emt 0:00:30]} c6 {[%emt 0:05:30]} 7. f3 {[%emt 0:01:30]} b5 {[%emt 0:00:30]} 8. Bh6 {[%emt 0:02:30]} b4 {[%emt 0:03:30] B07: Pirc Defence: Miscellaneous Systems} 9. Na4 {[%emt 0:00:30]} (9. Nce2 Bxh6 10. Qxh6 Qa5 11. Kb1 e5 12. g4 Be6 13. Nc1 Nbd7 14. Nh3 exd4 15. Ng5 Ne5 16. Be2 {0-1 (32) Vymazal,B (2347)-Gupta,A (2617) Budapest 2018}) 9... Qa5 {[%emt 0:00:30]} 10. b3 {[%emt 0:00:00]} Nbd7 {[%emt 0:02:30]} 11. Bxg7 $146 {[%emt 0:01:00]} ({Predecessor:} 11. Kb1 Bxh6 12. Qxh6 Nb6 13. Nb2 Qh5 14. Qxh5 Nxh5 15. g4 Nf4 16. Ne2 Nxe2 17. Bxe2 {1-0 (33) Kudla,R (2044)-Trombik,K (2017) Czechia 2014}) 11... Kxg7 {[%emt 0:00:30]} 12. Kb1 {[%emt 0:04:30]} Nb6 {[%emt 0:05:30]} 13. Nb2 {[%emt 0:01:30]} Be6 {[%emt 0:01:30]} 14. g4 {[%emt 0:01:30]} Bxg4 {[%emt 0:05:30]} 15. Bd3 {[%emt 0:07:30]} Bd7 {[%emt 0:05:30]} 16. Ne2 {[%emt 0:02:30]} c5 {[%emt 0:01:30]} 17. h4 {[%emt 0:06:30]} h5 {[%emt 0:11:30]} 18. Rdg1 {[%emt 0:02:30]} Bb5 {[%emt 0:01:30]} 19. Ng3 {[%emt 0:00:30]} Rh8 {[%emt 0:01:30]} 20. Qg5 {[%emt 0:02:30]} Kf8 {[%emt 0:08:30]} 21. dxc5 {[%emt 0:03:30]} Bxd3 {[%emt 0:12:30]} 22. Nxd3 {[%emt 0:00:30]} dxc5 {[%emt 0:01:30]} 23. Qxc5 {[%emt 0:00:30]} Qxc5 {[%emt 0:01:30]} 24. Nxc5 {[%emt 0:00:30]} a5 {[%emt 0:00:30]} 25. Rd1 {[%emt 0:01:30]} Kg7 {[%emt 0:06:30]} 26. Rd2 {[%emt 0:01:30]} Rhc8 {[%emt 0:00:30]} 27. Nd3 {[%emt 0:01:30]} Rc7 {[%emt 0:00:36]} 28. Nf4 {[%emt 0:03:30]} Rac8 {[%emt 0:00:57]} 29. e5 {[%emt 0:00:30]} Nh7 {[%emt 0:02:02]} 30. Ne4 {[%emt 0:01:30]} e6 {[%emt 0:02:23]} 31. Rg1 {[%emt 0:05:30]} Kh6 {[%emt 0:01:00]} 32. Rdg2 {[%emt 0:05:30]} Rg8 {[%emt 0:01:03]} 33. Nd6 {[%emt 0:02:30]} Nf8 {[%emt 0:00:11]} 34. Rg5 {[%emt 0:01:30]} Rh8 {[%emt 0:01:12]} 35. Kb2 {[%emt 0:15:30]} Nd5 $2 {[%emt 0:01:37]} (35... a4 $16 {ist wohl besser.}) 36. Nxd5 {[%emt 0:00:30]} exd5 {[%emt 0:00:06]} 37. f4 {[%emt 0:00:30]} Rg8 {[%emt 0:02:28]} 38. Ne8 $18 {[%emt 0:02:30]} Rc5 {[%emt 0:03:20]} 39. Nf6 {[%emt 0:01:30]} Rh8 {[%emt 0:00:06]} 40. f5 {[%emt 0:00:30]} d4 {[%emt 0:00:34]} 41. fxg6 {[%emt 0:01:30]} fxg6 {[%emt 0:00:18]} 42. e6 {[%emt 0:01:30]} Rc7 {[%emt 0:01:43]} 43. Nd5 {[%emt 0:00:30]} Rg7 {[%emt 0:00:23]} 44. Re1 {[%emt 0:00:56]} Nh7 {[%emt 0:01:39]} 45. Rge5 {[%emt 0:01:32]} Re8 {[%emt 0:00:45]} 46. e7 {[%emt 0:00:15]} Rgg8 {[%emt 0:00:29]} 47. Nc7 {[%emt 0:00:18]} Nf6 {[%emt 0:00:18]} 48. Nxe8 {[%emt 0:00:26]} Rxe8 {[%emt 0:00:03]} 49. Rxa5 {[%emt 0:00:32]} 1-0

[Event "Istanbul Open 2018"]
[Site "Istanbul"]
[Date "2018.09.06"]
[Round "7"]
[White "Topcu, Tibet Tuna"]
[Black "Sen, Irem"]
[Result "0-1"]
[ECO "D24"]
[WhiteElo "1590"]
[BlackElo "1670"]
[Annotator "NA RC"]
[PlyCount "108"]
[EventDate "2018.09.02"]
[EventType "swiss"]
[EventCountry "TUR"]
[SourceTitle "playchess.com"]
[Source "ChessBase"]
[SourceQuality "1"]
[TimeControl "5400+30"]

1. d4 {[%emt 0:00:30]} d5 {[%emt 0:00:30]} 2. Nf3 {[%emt 0:00:00]} e6 {[%emt 0:00:00]} 3. e3 {[%emt 0:00:00]} Nf6 {[%emt 0:00:00]} 4. c4 {[%emt 0:00:30]} a6 {[%emt 0:01:30]} 5. Nc3 {[%emt 0:02:30]} dxc4 {[%emt 0:00:30]} 6. a4 {[%emt 0:01:30]} b6 {[%emt 0:01:30]} 7. Bxc4 {[%emt 0:01:30]} Bb7 {[%emt 0:00:30]} 8. O-O {[%emt 0:00:30]} Bb4 {[%emt 0:02:30]} 9. Qe2 {[%emt 0:02:30]} O-O {[%emt 0:01:30]} 10. Rd1 {[%emt 0:01:30]} Qe7 {[%emt 0:00:30]} 11. Na2 {[%emt 0:04:30]} Bd6 {[%emt 0:00:30]} 12. Nc3 {[%emt 0:01:30]} Nbd7 {[%emt 0:07:30]} 13. e4 {[%emt 0:03:30]} e5 {[%emt 0:01:30]} 14. d5 {[%emt 0:05:30]} Nc5 {[%emt 0:05:30]} 15. Bg5 {[%emt 0:03:30]} h6 {[%emt 0:03:30]} 16. Bh4 {[%emt 0:01:30]} Ncd7 {[%emt 0:10:30]} 17. Ne1 {[%emt 0:06:30]} Rfe8 {[%emt 0:06:30]} 18. Nd3 {[%emt 0:02:30]} Nf8 {[%emt 0:04:30]} 19. Qf3 {[%emt 0:05:30]} g5 {[%emt 0:06:30]} 20. Bg3 {[%emt 0:00:30]} Ng6 {[%emt 0:00:30]} 21. Qe2 {[%emt 0:03:30]} Nf4 {[%emt 0:06:30]} 22. Bxf4 {[%emt 0:02:30]} exf4 {[%emt 0:01:30]} 23. Re1 {[%emt 0:05:30]} Nd7 {[%emt 0:01:30]} 24. Bb3 {[%emt 0:09:30]} Ne5 {[%emt 0:06:30]} 25. f3 {[%emt 0:05:30]} h5 {[%emt 0:05:30]} 26. Bc2 {[%emt 0:05:30]} Kg7 {[%emt 0:03:30]} 27. Nd1 {[%emt 0:05:30]} Qf6 {[%emt 0:07:49]} 28. N1f2 {[%emt 0:01:44]} Nxd3 {[%emt 0:01:05]} 29. Nxd3 {[%emt 0:01:29]} Bxd5 {[%emt 0:01:28]} 30. e5 {[%emt 0:03:05]} Qe7 {[%emt 0:02:11]} 31. Qd2 {[%emt 0:01:56]} Bc5+ {[%emt 0:00:11]} 32. Kh1 {[%emt 0:00:24]} Be3 {[%emt 0:00:19]} 33. Qc3 {[%emt 0:00:56]} Kh6 {[%emt 0:00:19]} 34. Nb4 {[%emt 0:03:51]} Bb7 {[%emt 0:00:42]} 35. Qd3 {[%emt 0:01:22]} Rh8 {[%emt 0:00:07]} 36. Qc3 {[%emt 0:00:36]} c5 {[%emt 0:00:39]} 37. Nd3 {[%emt 0:00:16]} Rag8 {[%emt 0:01:11]} 38. Re2 {[%emt 0:01:22]} g4 {[%emt 0:00:35]} 39. Ne1 {[%emt 0:00:21]} gxf3 {[%emt 0:00:46]} 40. Nxf3 {[%emt 0:00:39]} Bxf3 {[%emt 0:00:14]} 41. gxf3 {[%emt 0:00:38]} Qg5 {[%emt 0:00:11]} 42. Qe1 {[%emt 0:00:17]} Rg7 {[%emt 0:00:34]} 43. h4 {[%emt 0:01:16]} Qxe5 {[%emt 0:01:11]} 44. Qc3 {[%emt 0:01:02]} Qxc3 {[%emt 0:00:24]} 45. bxc3 {[%emt 0:00:06]} Rg3 {[%emt 0:00:24]} 46. Rg2 {[%emt 0:02:36]} Rh3+ {[%emt 0:00:04]} 47. Rh2 {[%emt 0:00:08]} Rxf3 {[%emt 0:00:24]} 48. Be4 {[%emt 0:00:35]} Rg3 {[%emt 0:00:21]} 49. Rg2 {[%emt 0:00:38]} Rhg8 {[%emt 0:01:24]} 50. Rb1 {[%emt 0:01:01]} c4 {[%emt 0:00:14]} 51. Bd5 {[%emt 0:00:38]} R8g4 {[%emt 0:00:36]} 52. Rxg3 {[%emt 0:00:17]} fxg3 {[%emt 0:00:13]} 53. Kg2 {[%emt 0:00:25]} Bf2 {[%emt 0:00:25]} 54. Kh3 {[%emt 0:01:46]} g2 {[%emt 0:00:26]} 0-1

[Event "Istanbul Open 2018"]
[Site "Istanbul"]
[Date "2018.09.06"]
[Round "7"]
[White "Ersoy, Emre"]
[Black "Yilmaz, Aras"]
[Result "1-0"]
[ECO "C90"]
[WhiteElo "1557"]
[BlackElo "1632"]
[Annotator "NA RC"]
[PlyCount "115"]
[EventDate "2018.09.02"]
[EventType "swiss"]
[EventCountry "TUR"]
[SourceTitle "playchess.com"]
[Source "ChessBase"]
[SourceQuality "1"]
[TimeControl "5400+30"]

1. e4 {[%emt 0:00:30]} e5 {[%emt 0:00:30]} 2. Nf3 {[%emt 0:00:00]} Nc6 {[%emt 0:00:00]} 3. Bb5 {[%emt 0:00:00]} a6 {[%emt 0:00:00]} 4. Ba4 {[%emt 0:00:00]} Nf6 {[%emt 0:00:00]} 5. O-O {[%emt 0:00:00]} d6 {[%emt 0:00:00]} 6. Re1 {[%emt 0:00:30]} Bg4 {[%emt 0:05:30]} 7. c3 {[%emt 0:01:30]} Be7 {[%emt 0:00:00]} 8. d3 {[%emt 0:00:30]} O-O {[%emt 0:01:00]} 9. Nbd2 {[%emt 0:00:30]} b5 {[%emt 0:01:30]} 10. Bb3 {[%emt 0:00:30]} Na5 {[%emt 0:00:30]} 11. Bc2 {[%emt 0:00:00]} c5 {[%emt 0:00:30]} 12. Nf1 {[%emt 0:00:00]} Nc6 {[%emt 0:05:30]} 13. Ne3 {[%emt 0:01:30]} Bd7 {[%emt 0:12:30]} 14. h3 {[%emt 0:05:30]} Ne8 {[%emt 0:06:30]} 15. Nd5 {[%emt 0:08:30]} f5 {[%emt 0:01:30]} 16. d4 {[%emt 0:07:30]} f4 {[%emt 0:08:30]} 17. dxc5 {[%emt 0:30:30]} dxc5 {[%emt 0:01:30]} 18. a4 {[%emt 0:03:30]} b4 {[%emt 0:14:30]} 19. Nb6 {[%emt 0:22:15]} Qxb6 {[%emt 0:19:30]} 20. Qxd7 {[%emt 0:00:40]} Qc7 {[%emt 0:06:12]} 21. Bb3+ {[%emt 0:07:22]} Kh8 {[%emt 0:00:16]} 22. Qxc7 {[%emt 0:00:28]} Nxc7 {[%emt 0:00:01]} 23. Bd5 {[%emt 0:00:09]} Nxd5 {[%emt 0:06:13]} 24. exd5 {[%emt 0:00:05]} Na5 {[%emt 0:00:11]} 25. Nxe5 {[%emt 0:07:23]} Rad8 {[%emt 0:01:53]} 26. Nc6 {[%emt 0:02:14]} Nxc6 {[%emt 0:00:07]} 27. dxc6 {[%emt 0:01:02]} Bf6 {[%emt 0:02:57]} 28. cxb4 {[%emt 0:00:30]} cxb4 {[%emt 0:00:30]} 29. Bxf4 {[%emt 0:00:35]} Bxb2 {[%emt 0:00:41]} 30. Rab1 {[%emt 0:00:27]} Bc3 {[%emt 0:00:01]} 31. c7 {[%emt 0:00:43]} Rd4 {[%emt 0:02:50]} 32. Be5 {[%emt 0:00:30]} Rc4 {[%emt 0:02:31]} 33. Bxc3 {[%emt 0:00:09]} Rxc3 {[%emt 0:01:12]} 34. Rec1 {[%emt 0:00:33]} Rxc1+ {[%emt 0:00:36]} 35. Rxc1 {[%emt 0:00:06]} Rc8 {[%emt 0:00:02]} 36. Kf1 {[%emt 0:01:02]} Kg8 {[%emt 0:00:17]} 37. Ke2 {[%emt 0:00:23]} Kf7 {[%emt 0:01:26]} 38. Kd3 {[%emt 0:00:36]} a5 {[%emt 0:00:37]} 39. Rc5 {[%emt 0:00:34]} Ke6 {[%emt 0:00:42]} 40. Rxa5 {[%emt 0:00:30]} Rxc7 {[%emt 0:00:30]} 41. Rb5 {[%emt 0:00:07]} Rc3+ {[%emt 0:00:33]} 42. Kd2 {[%emt 0:00:43]} Rb3 {[%emt 0:00:02]} 43. Kc2 {[%emt 0:00:45]} Ra3 {[%emt 0:00:46]} 44. Rxb4 {[%emt 0:00:21]} Ra2+ {[%emt 0:00:01]} 45. Kb3 {[%emt 0:00:28]} Rxf2 {[%emt 0:00:03]} 46. a5 {[%emt 0:00:15]} Rxg2 {[%emt 0:01:15]} 47. a6 {[%emt 0:00:18]} Rg3+ {[%emt 0:00:08]} 48. Kc4 {[%emt 0:00:35]} Rxh3 {[%emt 0:00:56]} 49. Ra4 {[%emt 0:00:13]} Rf3 {[%emt 0:00:26]} 50. a7 {[%emt 0:00:34]} Rf8 {[%emt 0:00:04]} 51. a8=Q {[%emt 0:00:14]} Rxa8 {[%emt 0:00:01]} 52. Rxa8 {[%emt 0:00:18]} h5 {[%emt 0:01:37]} 53. Ra5 {[%emt 0:00:41]} g6 {[%emt 0:00:01]} 54. Kd4 {[%emt 0:00:00]} h4 {[%emt 0:00:53]} 55. Ke4 {[%emt 0:00:00]} Kf6 {[%emt 0:00:36]} 56. Kf4 {[%emt 0:00:11]} Kg7 {[%emt 0:00:45]} 57. Kg5 {[%emt 0:00:23]} h3 {[%emt 0:00:06]} 58. Ra3 {[%emt 0:00:15]} 1-0